bitfinex/quotes_BTCUSD_20240602
["timestamp","ask_amount","ask_price","bid_price","bid_amount"]
[1717306846448,1.71371129,67802.0,67801.0,0.2279]
[1717306846781,1.70389884,67802.0,67801.0,0.2279]
[1717306847042,1.7134557,67802.0,67801.0,0.2279]
[1717306847484,0.84881332,67799.0,67798.0,0.00857]
[1717306847695,1.06729123,67799.0,67798.0,0.00857]
[1717306847920,1.54147578,67799.0,67798.0,0.00857]
[1717306848499,1.64147578,67799.0,67798.0,0.00857]
[1717306848746,1.62500899,67799.0,67798.0,0.00857]
[1717306849167,1.66100899,67799.0,67798.0,0.00857]
[1717306850076,1.69700899,67799.0,67798.0,0.00857]
[1717306850992,1.66100899,67799.0,67798.0,0.00857]
[1717306851220,1.69681115,67799.0,67798.0,0.00857]
[1717306855568,1.99180015,67799.0,67798.0,0.00857]
[1717306856399,1.95580015,67799.0,67798.0,0.00857]
[1717306857143,1.99180015,67799.0,67798.0,0.00857]
[1717306857311,2.02780015,67799.0,67798.0,0.00857]
[1717306857673,1.99180015,67799.0,67798.0,0.00857]
[1717306858074,2.02780015,67799.0,67798.0,0.00857]
[1717306858273,2.04577614,67799.0,67798.0,0.00857]
[1717306862538,2.03673944,67799.0,67798.0,0.00857]
[1717306862767,2.04632295,67799.0,67798.0,0.00857]
[1717306863398,2.03673944,67799.0,67798.0,0.00857]
[1717306863602,2.04634577,67799.0,67798.0,0.00857]
[1717306864872,1.76039452,67799.0,67798.0,0.00857]
[1717306865070,2.04634317,67799.0,67798.0,0.00857]
[1717306865618,1.94300568,67799.0,67798.0,0.00857]
[1717306865814,2.04633915,67799.0,67798.0,0.00857]
[1717306866030,2.0489043,67799.0,67798.0,0.00857]
[1717306866232,2.1311043,67799.0,67798.0,0.00857]
[1717306866923,2.13078099,67799.0,67798.0,0.00857]
[1717306867136,2.04858099,67799.0,67798.0,0.00857]
[1717306871553,2.28838099,67799.0,67798.0,0.00857]
[1717306877102,2.13078099,67799.0,67798.0,0.00857]
[1717306877544,2.28838099,67799.0,67798.0,0.00857]
[1717306878338,2.20618099,67799.0,67798.0,0.00857]
[1717306879549,2.00802767,67799.0,67798.0,0.00857]
[1717306879752,2.0486302,67799.0,67798.0,0.00857]
[1717306879998,2.04961549,67799.0,67798.0,0.08797]
[1717306881311,2.04966912,67799.0,67798.0,0.08797]
[1717306888987,2.04966966,67799.0,67798.0,0.08797]
[1717306889405,1.99996966,67799.0,67798.0,0.08797]
[1717306889668,2.04966966,67799.0,67798.0,0.08797]
[1717306890790,2.0538992,67799.0,67798.0,0.08797]
[1717306894485,2.05398202,67799.0,67798.0,0.08797]
[1717306895431,2.05413405,67799.0,67798.0,0.08797]
[1717306896794,2.05413405,67799.0,67798.0,0.00857]
[1717306896795,2.29533405,67799.0,67798.0,0.00857]
[1717306897039,2.29702193,67799.0,67798.0,0.00857]
[1717306897352,2.39702193,67799.0,67798.0,0.00857]
[1717306897584,2.29702193,67799.0,67798.0,0.00857]
[1717306902927,2.29386396,67799.0,67798.0,0.00857]
[1717306903704,2.29159576,67799.0,67798.0,0.00857]
[1717306907918,2.30750944,67799.0,67798.0,0.00857]
[1717306908705,2.28954026,67799.0,67798.0,0.00857]
[1717306908915,2.30751013,67799.0,67798.0,0.00857]
[1717306914409,2.13884548,67799.0,67798.0,0.00857]
[1717306914549,2.30934207,67799.0,67798.0,0.00857]
[1717306916914,2.30941352,67799.0,67798.0,0.00857]
[1717306918439,2.30942607,67799.0,67798.0,0.00857]
[1717306919638,2.23742607,67799.0,67798.0,0.00857]
[1717306920072,2.27342607,67799.0,67798.0,0.00857]
[1717306920605,2.06139459,67799.0,67798.0,0.00857]
[1717306920915,6.05562857,67799.0,67798.0,0.00857]
[1717306921115,6.09162857,67799.0,67798.0,0.00857]
[1717306921619,6.12762857,67799.0,67798.0,0.00857]
[1717306921854,6.11562857,67799.0,67798.0,0.00857]
[1717306923171,6.07986057,67799.0,67798.0,0.00857]
[1717306923376,6.11586057,67799.0,67798.0,0.00857]
[1717306927216,6.05893765,67799.0,67798.0,0.00857]
[1717306927421,6.11585472,67799.0,67798.0,0.00857]
[1717306928281,6.21585472,67799.0,67798.0,0.00857]
[1717306933377,5.97895472,67799.0,67798.0,0.00857]
[1717306933620,6.34843499,67799.0,67798.0,0.00857]
[1717306934015,6.21585472,67799.0,67798.0,0.00857]
[1717306934168,6.17985472,67799.0,67798.0,0.00857]
[1717306934409,6.24042921,67799.0,67798.0,0.00857]
[1717306935411,6.27642921,67799.0,67798.0,0.00857]
[1717306935836,6.31242921,67799.0,67798.0,0.00857]
[1717306936193,6.27386406,67799.0,67798.0,0.00857]
[1717306936395,6.30986406,67799.0,67798.0,0.00857]
[1717306937013,6.65986406,67799.0,67798.0,0.00857]
[1717306937457,7.89886406,67799.0,67798.0,0.00857]
[1717306941803,7.79886406,67799.0,67798.0,0.00857]
[1717306942057,7.64456406,67799.0,67798.0,0.00857]
[1717306942284,5.54396406,67799.0,67798.0,0.00857]
[1717306942494,4.30296406,67799.0,67798.0,0.00857]
[1717306942697,4.2465423,67799.0,67798.0,0.00857]
[1717306942907,4.30296406,67799.0,67798.0,0.00857]
[1717306943113,4.30376563,67799.0,67798.0,0.00857]
[1717306944491,4.19276563,67799.0,67798.0,0.00857]
[1717306944692,4.02123547,67799.0,67798.0,0.00857]
[1717306944997,4.19327611,67799.0,67798.0,0.00857]
[1717306945606,2.33100162,67799.0,67798.0,0.00857]
[1717306945803,2.38070162,67799.0,67798.0,0.08467]
[1717306948298,2.20866098,67799.0,67798.0,0.08467]
[1717306948702,2.38034643,67799.0,67798.0,0.08467]
[1717306951754,2.38188657,67799.0,67798.0,0.08467]
[1717306952981,2.13294646,67799.0,67798.0,0.08467]
[1717306953252,2.38188239,67799.0,67798.0,0.08467]
[1717306954736,2.38188284,67799.0,67798.0,0.08467]
[1717306957426,2.38180754,67799.0,67798.0,0.08467]
[1717306959178,2.38436888,67799.0,67798.0,0.08467]
[1717306961351,2.38374008,67799.0,67798.0,0.08467]
[1717306962584,2.38374008,67799.0,67798.0,0.00857]
[1717306968147,2.38368996,67799.0,67798.0,0.00857]
[1717306970565,2.38371203,67799.0,67798.0,0.00857]
[1717306971863,2.38371203,67799.0,67798.0,0.16477]
[1717306972089,2.38371203,67799.0,67798.0,0.24377]
[1717306977170,2.3837059,67799.0,67798.0,0.24377]
[1717306980561,2.38368077,67799.0,67798.0,0.24377]
[1717306987539,2.51623646,67799.0,67798.0,0.24377]
[1717306989523,2.51630647,67799.0,67798.0,0.08757]
[1717306990756,2.50782147,67799.0,67798.0,0.08757]
[1717306991239,2.5077804,67799.0,67798.0,0.08757]
[1717306992026,2.37522471,67799.0,67798.0,0.08007]
[1717306992236,2.37522471,67799.0,67798.0,0.24137]
[1717306992237,1.86233248,67799.0,67798.0,0.24137]
[1717306992440,1.59404348,67799.0,67798.0,0.24137]
[1717306992838,1.4614578,67799.0,67798.0,0.24137]
[1717306992997,1.45889646,67799.0,67798.0,0.24137]
[1717306993849,1.48189646,67799.0,67798.0,0.24137]
[1717307001343,1.47887858,67799.0,67798.0,0.24137]
[1717307005354,1.47729601,67799.0,67798.0,0.24137]
[1717307009781,1.47729601,67799.0,67798.0,0.00107]
[1717307009986,1.80037392,67799.0,67798.0,0.00107]
[1717307010460,1.72307392,67799.0,67798.0,0.00107]
[1717307011370,1.72307392,67799.0,67798.0,0.15857]
[1717307012199,1.71763566,67799.0,67798.0,0.15857]
[1717307013786,1.4194035,67799.0,67798.0,0.15857]
[1717307014009,1.67720345,67799.0,67798.0,0.15857]
[1717307014219,1.71570576,67799.0,67798.0,0.15857]
[1717307016141,1.71570576,67799.0,67798.0,0.00107]
[1717307021103,1.71480958,67799.0,67798.0,0.00107]
[1717307027898,1.71446317,67799.0,67798.0,0.00107]
[1717307035775,1.66476317,67799.0,67798.0,0.00107]
[1717307035951,1.71446317,67799.0,67798.0,0.00107]
[1717307036770,1.7109838,67799.0,67798.0,0.00107]
[1717307037516,1.71061589,67799.0,67798.0,0.00107]
[1717307043406,1.71020121,67799.0,67798.0,0.00107]
[1717307044873,1.70958783,67799.0,67798.0,0.00107]
[1717307048397,1.65988783,67799.0,67798.0,0.00107]
[1717307048602,1.70958783,67799.0,67798.0,0.00107]
[1717307057962,1.71129987,67799.0,67798.0,0.00107]
[1717307060332,1.41582196,67799.0,67798.0,0.24157]
[1717307060542,1.46552196,67799.0,67798.0,0.24157]
[1717307060739,1.12083296,67799.0,67798.0,0.24157]
[1717307060942,1.17053296,67799.0,67798.0,0.24157]
[1717307061552,1.11493423,67799.0,67798.0,0.24157]
[1717307062681,0.87863659,67799.0,67798.0,0.24157]
[1717307062880,0.92384745,67799.0,67798.0,0.24157]
[1717307063082,1.09251502,67799.0,67798.0,0.24157]
[1717307063637,1.05651502,67799.0,67798.0,0.24157]
[1717307063807,1.02051502,67799.0,67798.0,0.24157]
[1717307063961,1.09251502,67799.0,67798.0,0.24157]
[1717307065709,1.38750402,67799.0,67798.0,0.00107]
[1717307075063,1.17362559,67799.0,67798.0,0.00107]
[1717307075265,1.38596703,67799.0,67798.0,0.00107]
[1717307077581,1.33626703,67799.0,67798.0,0.00107]
[1717307077786,1.38596703,67799.0,67798.0,0.00107]
[1717307079307,1.33626703,67799.0,67798.0,0.00107]
[1717307079512,1.38596703,67799.0,67798.0,0.00107]
[1717307081760,1.38499582,67799.0,67798.0,0.00107]
[1717307083537,1.63077373,67799.0,67798.0,0.00107]
[1717307083744,1.86203874,67799.0,67798.0,0.00107]
[1717307083940,1.86737785,67799.0,67798.0,0.00107]
[1717307085074,1.71207785,67799.0,67798.0,0.00107]
[1717307086365,1.66237785,67799.0,67798.0,0.00107]
[1717307086546,1.71207785,67799.0,67798.0,0.00107]
[1717307087077,1.50070762,67799.0,67798.0,0.00107]
[1717307087276,1.71247885,67799.0,67798.0,0.00107]
[1717307089470,1.63107885,67799.0,67798.0,0.00107]
[1717307090824,2.16276785,67799.0,67798.0,0.00107]
[1717307097669,2.16236186,67799.0,67798.0,0.00107]
[1717307099385,2.00706186,67799.0,67798.0,0.00107]
[1717307102088,2.00706186,67799.0,67775.0,0.0664346]
[1717307102089,0.1,67796.0,67775.0,0.0664346]
[1717307102325,1.14052104,67786.0,67777.0,0.00857]
[1717307102524,1.52690324,67786.0,67777.0,0.00857]
[1717307102806,1.74116765,67786.0,67777.0,0.00857]
[1717307103010,1.86662361,67786.0,67777.0,0.00857]
[1717307103223,1.87425824,67786.0,67777.0,0.00857]
[1717307103421,1.88141893,67786.0,67777.0,0.00857]
[1717307104302,1.90262361,67786.0,67777.0,0.00857]
[1717307104871,1.93862361,67786.0,67777.0,0.00857]
[1717307105130,1.93862361,67786.0,67785.0,0.00723189]
[1717307105345,1.81316765,67786.0,67785.0,0.00723189]
[1717307105541,1.98208904,67786.0,67785.0,0.00723189]
[1717307105952,2.01808904,67786.0,67785.0,0.00723189]
[1717307107395,2.12824898,67786.0,67785.0,0.00467289]
[1717307108003,2.01404469,67786.0,67785.0,0.00467289]
[1717307108572,1.90388475,67786.0,67785.0,0.00467289]
[1717307109309,1.99197794,67786.0,67785.0,0.00467289]
[1717307111502,1.90388475,67786.0,67785.0,0.00467289]
[1717307112799,1.14054904,67784.0,67783.0,8.9e-07]
[1717307112915,1.51750508,67784.0,67783.0,8.9e-07]
[1717307113127,1.66949169,67784.0,67783.0,8.9e-07]
[1717307113330,1.83079169,67784.0,67783.0,8.9e-07]
[1717307113573,1.93079169,67784.0,67783.0,8.9e-07]
[1717307113771,1.83079169,67784.0,67783.0,8.9e-07]
[1717307114356,1.86679169,67784.0,67783.0,8.9e-07]
[1717307115052,2.00279169,67784.0,67783.0,8.9e-07]
[1717307115255,2.0468074,67784.0,67783.0,8.9e-07]
[1717307115458,2.0108074,67784.0,67783.0,8.9e-07]
[1717307115671,1.8748074,67784.0,67783.0,8.9e-07]
[1717307115884,1.9108074,67784.0,67783.0,8.9e-07]
[1717307116060,1.9468074,67784.0,67783.0,8.9e-07]
[1717307116272,1.9108074,67784.0,67783.0,8.9e-07]
[1717307116747,1.9735074,67784.0,67783.0,8.9e-07]
[1717307118228,1.9965074,67784.0,67783.0,8.9e-07]
[1717307118460,1.9468074,67784.0,67783.0,8.9e-07]
[1717307118588,1.9965074,67784.0,67783.0,8.9e-07]
[1717307119384,1.95249169,67784.0,67783.0,8.9e-07]
[1717307120556,1.94715762,67784.0,67783.0,8.9e-07]
[1717307120770,1.95246643,67784.0,67783.0,8.9e-07]
[1717307121176,1.98176643,67784.0,67783.0,8.9e-07]
[1717307121385,2.03146643,67784.0,67783.0,8.9e-07]
[1717307121583,2.02683175,67784.0,67783.0,8.9e-07]
[1717307122590,1.97713175,67784.0,67783.0,8.9e-07]
[1717307122994,2.02683175,67784.0,67783.0,8.9e-07]
[1717307123190,1.78653175,67784.0,67783.0,8.9e-07]
[1717307127266,1.9209149,67784.0,67783.0,8.9e-07]
[1717307128444,1.96491478,67784.0,67783.0,8.9e-07]
[1717307130325,1.71472616,67784.0,67783.0,8.9e-07]
[1717307130563,1.96888918,67784.0,67783.0,8.9e-07]
[1717307131170,1.8609121,67784.0,67783.0,8.9e-07]
[1717307131372,1.96860203,67784.0,67783.0,8.9e-07]
[1717307131802,1.98336893,67784.0,67783.0,8.9e-07]
[1717307133588,1.93936168,67784.0,67783.0,8.9e-07]
[1717307136443,1.88966168,67784.0,67783.0,8.9e-07]
[1717307136620,1.59460768,67784.0,67783.0,0.24160089]
[1717307136886,1.39852977,67784.0,67783.0,0.24160089]
[1717307139091,1.34882977,67784.0,67783.0,0.24160089]
[1717307139305,1.46454064,67784.0,67783.0,0.24160089]
[1717307141387,1.39852977,67784.0,67783.0,0.24160089]
[1717307142384,1.48654427,67784.0,67783.0,0.24160089]
[1717307143210,1.39852977,67784.0,67783.0,0.24160089]
[1717307144439,1.50854789,67784.0,67783.0,0.24160089]
[1717307145530,1.39852977,67784.0,67783.0,0.24160089]
[1717307146095,1.39180801,67784.0,67783.0,0.24230089]
[1717307146309,1.31557753,67784.0,67783.0,0.24230089]
[1717307146708,1.09295796,67784.0,67783.0,0.24230089]
[1717307147438,1.04677202,67784.0,67783.0,0.24230089]
[1717307147641,0.71571802,67784.0,67783.0,0.24230089]
[1717307147839,0.7588984,67784.0,67783.0,0.24230089]
[1717307148046,0.7228984,67784.0,67783.0,0.24230089]
[1717307148566,0.77286737,67784.0,67783.0,0.24230089]
[1717307148770,0.73686737,67784.0,67783.0,0.24230089]
[1717307148974,0.34181337,67784.0,67783.0,0.24230089]
[1717307149198,0.29766402,67784.0,67783.0,0.24230089]
[1717307149400,0.33366402,67784.0,67783.0,0.24230089]
[1717307150443,0.18997409,67784.0,67783.0,0.24230089]
[1717307150651,0.22597409,67784.0,67783.0,0.24230089]
[1717307151018,0.31796093,67784.0,67783.0,0.24230089]
[1717307151236,0.22597409,67784.0,67783.0,0.24230089]
[1717307165514,0.22597409,67784.0,67783.0,0.4766488]
[1717307165919,0.22066528,67784.0,67783.0,0.4766488]
[1717307166324,0.22569013,67784.0,67783.0,0.4766488]
[1717307176532,0.22569013,67784.0,67783.0,0.6318488]
[1717307176964,0.22066528,67784.0,67783.0,0.6318488]
[1717307177307,0.18969013,67784.0,67783.0,0.6318488]
[1717307177506,0.18969013,67784.0,67783.0,0.6358488]
[1717307177706,0.15569013,67784.0,67783.0,0.6358488]
[1717307178108,0.15366528,67784.0,67783.0,0.6358488]
[1717307183100,0.15870704,67784.0,67783.0,0.6358488]
[1717307183306,0.236054,67784.0,67783.0,0.6358488]
[1717307183504,0.23605406,67784.0,67783.0,0.6358488]
[1717307189716,0.2358987,67784.0,67783.0,0.6358488]
[1717307191152,0.23632282,67784.0,67783.0,0.6358488]
[1717307194686,0.15855168,67784.0,67783.0,0.6358488]
[1717307194900,0.23562497,67784.0,67783.0,0.6358488]
[1717307201182,0.23518927,67784.0,67783.0,0.6358488]
[1717307208292,0.15811598,67784.0,67783.0,0.6358488]
[1717307208603,0.23554532,67784.0,67783.0,0.6358488]
[1717307213389,0.23554532,67784.0,67783.0,0.4722488]
[1717307214459,0.23554532,67784.0,67783.0,0.3935488]
[1717307214591,0.23516605,67784.0,67783.0,0.09257089]
[1717307217177,0.23534978,67784.0,67783.0,0.09257089]
[1717307221438,0.46904978,67784.0,67783.0,0.00400089]
[1717307223329,0.76410378,67784.0,67783.0,0.00400089]
[1717307223554,0.77082554,67784.0,67783.0,0.00400089]
[1717307223979,0.83706638,67784.0,67783.0,0.00400089]
[1717307226008,0.77082554,67784.0,67783.0,0.00400089]
[1717307228503,0.76410378,67784.0,67783.0,0.00400089]
[1717307228730,0.80824013,67784.0,67783.0,0.00400089]
[1717307229389,0.51318613,67784.0,67783.0,0.00400089]
[1717307229594,0.46904978,67784.0,67783.0,0.00400089]
[1717307230219,0.46956607,67784.0,67783.0,0.00400089]
[1717307231207,0.23586607,67784.0,67783.0,0.00400089]
[1717307231412,0.15811598,67784.0,67783.0,0.5308888]
[1717307231924,0.15307422,67784.0,67783.0,0.6860888]
[1717307234884,0.005,67784.0,67783.0,0.6860888]
[1717307235093,0.005,67784.0,67783.0,0.6363888]
[1717307235317,0.005,67784.0,67783.0,0.6860888]
[1717307235919,0.00554722,67784.0,67783.0,0.6860888]
[1717307238186,0.005,67784.0,67783.0,0.7860888]
[1717307239300,0.005,67784.0,67783.0,0.9336178]
[1717307239958,0.005,67784.0,67783.0,1.32704221]
[1717307240158,0.003,67784.0,67783.0,1.56281339]
[1717307240382,0.00054722,67795.0,67791.0,0.1557]
[1717307240571,0.00054722,67795.0,67794.0,0.29351]
[1717307240796,0.00054722,67795.0,67794.0,0.43928791]
[1717307242202,0.00854722,67795.0,67794.0,0.44728791]
[1717307242401,0.00454722,67795.0,67794.0,0.44728791]
[1717307243463,0.00454722,67795.0,67794.0,0.68068791]
[1717307243837,0.00054722,67795.0,67794.0,0.67268791]
[1717307244051,0.00454722,67795.0,67794.0,0.69368791]
[1717307244351,0.00854722,67795.0,67794.0,0.69368791]
[1717307252480,0.008,67795.0,67794.0,0.69368791]
[1717307262115,0.008,67795.0,67794.0,0.64398791]
[1717307262476,0.008,67795.0,67794.0,0.69368791]
[1717307265492,0.00854722,67795.0,67794.0,0.41058791]
[1717307265814,0.40365022,67795.0,67794.0,0.41058791]
[1717307266208,0.40870457,67795.0,67794.0,0.41058791]
[1717307272264,0.24320457,67795.0,67794.0,0.41058791]
[1717307275516,0.16110457,67795.0,67794.0,0.41058791]
[1717307290537,0.39980457,67795.0,67794.0,0.021]
[1717307290891,0.47308851,67795.0,67794.0,0.021]
[1717307293027,0.39980457,67795.0,67794.0,0.021]
[1717307305283,0.40652633,67795.0,67794.0,0.021]
[1717307305696,0.39980457,67795.0,67794.0,0.021]
[1717307307228,0.40652633,67795.0,67794.0,0.021]
[1717307309312,0.39980457,67795.0,67794.0,0.021]
[1717307320438,0.470039,67795.0,67794.0,0.021]
[1717307322400,0.311639,67795.0,67794.0,0.021]
[1717307323659,0.231339,67795.0,67794.0,0.021]
[1717307327109,0.16110457,67795.0,67794.0,0.021]
[1717307327311,0.23420679,67795.0,67794.0,0.021]
[1717307329420,0.23431864,67795.0,67794.0,0.021]
[1717307340153,0.23591355,67795.0,67794.0,0.021]
[1717307344995,0.23617169,67795.0,67794.0,0.021]
[1717307351389,0.23522709,67795.0,67794.0,0.021]
[1717307354083,0.31822709,67795.0,67794.0,0.021]
[1717307354414,0.23522709,67795.0,67794.0,0.021]
[1717307363985,0.16110457,67795.0,67794.0,0.021]
[1717307364380,0.23486646,67795.0,67794.0,0.021]
[1717307365570,0.23519322,67795.0,67794.0,0.021]
[1717307365791,0.16110457,67795.0,67794.0,0.021]
[1717307366839,0.23721096,67795.0,67794.0,0.021]
[1717307367870,0.237203,67795.0,67794.0,0.021]
[1717307370784,0.16110457,67795.0,67794.0,0.021]
[1717307382603,0.16110457,67795.0,67794.0,0.75098791]
[1717307382604,0.01305435,67795.0,67794.0,0.75098791]
[1717307382937,0.01305435,67795.0,67794.0,0.87738791]
[1717307383267,0.008,67795.0,67794.0,0.87738791]
[1717307384192,0.008,67795.0,67794.0,0.82768791]
[1717307384321,0.008,67795.0,67794.0,0.87738791]
[1717307390962,0.008,67795.0,67794.0,0.89517559]
[1717307396127,0.008,67795.0,67794.0,0.92219732]
[1717307400097,0.008,67795.0,67794.0,0.97249732]
[1717307400345,0.008,67795.0,67794.0,1.02219732]
[1717307401036,0.008,67795.0,67794.0,0.87249732]
[1717307401236,0.008,67795.0,67794.0,0.92219732]
[1717307402010,0.008,67795.0,67794.0,0.87249732]
[1717307402234,0.008,67795.0,67794.0,0.92219732]
[1717307406150,0.008,67795.0,67794.0,0.87249732]
[1717307406400,0.008,67795.0,67794.0,0.92219732]
[1717307407134,0.008,67795.0,67794.0,0.99873348]
[1717307407342,0.008,67795.0,67794.0,0.92219732]
[1717307411995,0.008,67795.0,67794.0,0.87249732]
[1717307412197,0.008,67795.0,67794.0,0.92219732]
[1717307427262,0.008,67795.0,67794.0,0.96641985]
[1717307428243,0.008,67795.0,67794.0,0.92219732]
[1717307429903,0.00723643,67795.0,67794.0,0.92219732]
[1717307439055,0.00723643,67795.0,67794.0,0.77179732]
[1717307442347,0.00723643,67795.0,67794.0,0.83821668]
[1717307442750,0.00723643,67795.0,67794.0,0.77179732]
[1717307442947,0.00723643,67795.0,67794.0,0.92486998]
[1717307443152,0.00723643,67795.0,67794.0,0.99128934]
[1717307448270,0.00723643,67795.0,67794.0,0.9914669]
[1717307449279,0.00723643,67795.0,67794.0,0.94177456]
[1717307451000,0.00723643,67795.0,67794.0,0.94177474]
[1717307452838,0.00723643,67795.0,67794.0,1.26877315]
[1717307453273,0.00723643,67795.0,67794.0,1.20234595]
[1717307453648,0.00723643,67795.0,67794.0,1.30234595]
[1717307453847,0.00723643,67795.0,67794.0,1.20234595]
[1717307454051,0.00723643,67795.0,67794.0,1.20234107]
[1717307455267,0.00723643,67795.0,67794.0,1.30234107]
[1717307458433,0.00723643,67795.0,67794.0,1.20234107]
[1717307462540,0.00723643,67795.0,67794.0,1.20233768]
[1717307477399,0.00723643,67795.0,67794.0,0.87534415]
[1717307477706,0.00723643,67795.0,67794.0,1.20233527]
[1717307478395,0.00723643,67795.0,67794.0,0.87534415]
[1717307478587,0.00723643,67795.0,67794.0,1.20233529]
[1717307480479,0.00723643,67795.0,67794.0,0.79864415]
[1717307480675,0.00723643,67795.0,67794.0,0.64557488]
[1717307480880,0.00723643,67795.0,67794.0,0.79864617]
[1717307481218,0.00723643,67795.0,67794.0,0.86505376]
[1717307481422,0.00723643,67795.0,67794.0,1.19204727]
[1717307481600,0.00723643,67795.0,67794.0,0.79864617]
[1717307482190,0.00723643,67795.0,67794.0,0.86505376]
[1717307482842,0.00723643,67795.0,67794.0,0.79864617]
[1717307483476,0.00723643,67795.0,67794.0,0.84291918]
[1717307483831,0.00723643,67795.0,67794.0,0.79864617]
[1717307486912,0.00723643,67795.0,67794.0,0.86505376]
[1717307488295,0.00723643,67795.0,67794.0,0.8650531]
[1717307489520,0.00723643,67795.0,67794.0,1.19204705]
[1717307490837,0.00723643,67795.0,67794.0,1.19204697]
[1717307491479,0.00723643,67795.0,67794.0,1.19205097]
[1717307495316,0.00714943,67795.0,67794.0,1.19205097]
[1717307496431,0.00714943,67795.0,67794.0,0.84292198]
[1717307496804,0.00714943,67795.0,67794.0,1.19205095]
[1717307500729,0.00714943,67795.0,67794.0,1.12563928]
[1717307506437,0.00714943,67795.0,67794.0,1.22563928]
[1717307507125,0.00714943,67795.0,67794.0,1.12563928]
[1717307507364,0.00714943,67795.0,67794.0,1.21418818]
[1717307508175,0.00714943,67795.0,67794.0,1.21419038]
[1717307509760,0.00714943,67795.0,67794.0,1.26389038]
[1717307510399,0.00714943,67795.0,67794.0,1.1753347]
[1717307518377,0.00714943,67795.0,67794.0,1.1256347]
[1717307518594,0.00714943,67795.0,67794.0,1.12563677]
[1717307521218,0.00714943,67795.0,67794.0,1.12563667]
[1717307527308,0.00714943,67795.0,67794.0,1.12563666]
[1717307529495,0.00714943,67795.0,67794.0,0.97043666]
[1717307529726,0.00714943,67795.0,67794.0,0.97043648]
[1717307534971,0.00714943,67795.0,67794.0,0.97043656]
[1717307536570,0.00714943,67795.0,67794.0,0.97043652]
[1717307537431,0.00714943,67795.0,67794.0,1.05900236]
[1717307541540,0.00714943,67795.0,67794.0,1.05900202]
[1717307542968,0.00714943,67795.0,67794.0,1.05900291]
[1717307544537,0.00714943,67795.0,67794.0,1.03198118]
[1717307546886,0.00714943,67795.0,67794.0,0.87891189]
[1717307547093,0.00714943,67795.0,67794.0,1.03198121]
[1717307554400,0.00714943,67795.0,67794.0,0.61642247]
[1717307554574,0.00714943,67795.0,67794.0,1.03198323]
[1717307555842,0.00714943,67795.0,67794.0,0.87891674]
[1717307556021,0.00714943,67795.0,67794.0,1.03198596]
[1717307560325,0.00714943,67795.0,67794.0,1.03198791]
[1717307560740,0.08284943,67795.0,67794.0,1.03198791]
[1717307560897,0.23554943,67795.0,67794.0,1.00984429]
[1717307561093,0.23554943,67795.0,67794.0,0.61642444]
[1717307562814,0.23554943,67795.0,67794.0,0.61642511]
[1717307563490,0.23554943,67795.0,67794.0,0.61642478]
[1717307564787,0.23554943,67795.0,67794.0,0.68285555]
[1717307564788,0.00714943,67795.0,67794.0,0.68285555]
[1717307565381,0.00714943,67795.0,67794.0,0.61642478]
[1717307565818,0.00714943,67795.0,67794.0,0.68285555]
[1717307565975,0.00714943,67795.0,67794.0,0.61642478]
[1717307580957,0.00714943,67795.0,67794.0,0.68283625]
[1717307581680,0.00714943,67795.0,67794.0,1.00983025]
[1717307581936,0.00714943,67795.0,67794.0,0.85675862]
[1717307582146,0.00714943,67795.0,67794.0,1.00982848]
[1717307582739,0.00714943,67795.0,67794.0,0.94341701]
[1717307584861,0.00714943,67795.0,67794.0,0.94341633]
[1717307586468,0.00714943,67795.0,67794.0,1.26852133]
[1717307586666,0.00714943,67795.0,67794.0,1.16852133]
[1717307586869,0.00714943,67795.0,67794.0,1.26852133]
[1717307587664,0.00714943,67795.0,67794.0,1.16852133]
[1717307588831,0.00714943,67795.0,67794.0,1.26852133]
[1717307589453,0.00714943,67795.0,67794.0,1.35706996]
[1717307589641,0.00714943,67795.0,67794.0,1.35705669]
[1717307590482,0.00714943,67795.0,67794.0,1.25705669]
[1717307590725,0.00714943,67795.0,67794.0,1.35705669]
[1717307591110,0.00714943,67795.0,67794.0,1.35705385]
[1717307592345,0.00714943,67795.0,67794.0,1.25705385]
[1717307593038,0.00714943,67795.0,67794.0,1.16851272]
[1717307593209,0.00714943,67795.0,67794.0,1.16851322]
[1717307593395,0.00714943,67795.0,67794.0,1.25705231]
[1717307593623,0.00714943,67795.0,67794.0,0.84152552]
[1717307593827,0.00714943,67795.0,67794.0,1.25705082]
[1717307594230,0.00714943,67795.0,67794.0,1.30675082]
[1717307596700,0.00714943,67795.0,67794.0,0.89122552]
[1717307596917,0.00714943,67795.0,67794.0,1.30674824]
[1717307597333,0.00714943,67795.0,67794.0,2.11421202]
[1717307597543,0.00714943,67795.0,67794.0,2.02567612]
[1717307597664,0.00714943,67795.0,67794.0,2.22884597]
[1717307598304,0.00714943,67795.0,67794.0,2.20784597]
[1717307598305,0.004,67795.0,67794.0,2.20784597]
[1717307598660,0.1599,67815.0,67809.0,0.08861]
[1717307598811,0.1599,67815.0,67808.0,0.19]
[1717307598812,0.1599,67815.0,67814.0,0.13831]
[1717307599021,0.1599,67815.0,67814.0,0.38745528]
[1717307599427,0.236,67815.0,67814.0,0.38745528]
[1717307600170,0.236,67815.0,67814.0,0.23438791]
[1717307601125,0.236,67815.0,67814.0,0.25138791]
[1717307601669,0.236,67815.0,67814.0,0.27038791]
[1717307601874,0.237,67815.0,67814.0,0.27038791]
[1717307613023,0.24211821,67815.0,67814.0,0.27038791]
[1717307619320,0.24883997,67815.0,67814.0,0.27038791]
[1717307619813,0.24211821,67815.0,67814.0,0.27038791]
[1717307622212,0.24883997,67815.0,67814.0,0.27038791]
[1717307623187,0.24211821,67815.0,67814.0,0.27038791]
[1717307623386,0.24883997,67815.0,67814.0,0.27038791]
[1717307624010,0.24211821,67815.0,67814.0,0.27038791]
[1717307624215,0.24211821,67815.0,67814.0,0.42342759]
[1717307629125,0.24211821,67815.0,67814.0,0.42342793]
[1717307631515,0.24211821,67815.0,67814.0,0.42342929]
[1717307634650,0.24211821,67815.0,67814.0,0.32342929]
[1717307634857,0.24211821,67815.0,67814.0,0.41196929]
[1717307638314,0.24211821,67815.0,67814.0,0.4119693]
[1717307640340,0.08221821,67815.0,67814.0,0.4119693]
[1717307643769,0.00611821,67815.0,67814.0,0.4119693]
[1717307645335,0.00611821,67815.0,67814.0,0.41196884]
[1717307647263,0.00611821,67815.0,67814.0,0.41196816]
[1717307652699,0.01283997,67815.0,67814.0,0.41196816]
[1717307654275,0.00611821,67815.0,67814.0,0.41196816]
[1717307657415,0.00611821,67815.0,67814.0,0.41196918]
[1717307658523,0.01338719,67815.0,67814.0,0.27758127]
[1717307658697,0.25172135,67815.0,67814.0,0.12454]
[1717307658856,0.24660314,67815.0,67814.0,0.12454]
[1717307659055,0.25170856,67815.0,67814.0,0.12454]